[Event "FIDE World Cup O12-TB 2024"]
[Site "Batumi"]
[Date "2024.07.02"]
[Round "2.18"]
[White "Diasamidze, Rati"]
[Black "Amangeldy, Ramazan"]
[Result "1/2-1/2"]
[ECO "B73"]
[WhiteElo "1646"]
[BlackElo "1740"]
[Annotator "NA RC"]
[PlyCount "131"]
[EventDate "2024.06.23"]
[EventType "swiss"]
[EventCountry "GEO"]
[SourceTitle "playchess.com"]
[Source "ChessBase"]
[SourceQuality "1"]
[TimeControl "5400+30"]

1. e4 {[%emt 0:00:03]} c5 {[%emt 0:00:13]} 2. Nf3 {[%emt 0:00:08]} d6 {[%emt 0:00:04]} 3. d4 {[%emt 0:00:05]} cxd4 {[%emt 0:00:03]} 4. Nxd4 {[%emt 0:00:03]} Nf6 {[%emt 0:00:06]} 5. Nc3 {[%emt 0:00:04]} g6 {[%emt 0:00:07]} 6. Be2 {[%emt 0:01:07]} Bg7 {[%emt 0:00:08]} 7. O-O {[%emt 0:00:20]} O-O {[%emt 0:00:05]} 8. Be3 {[%emt 0:00:46]} Nc6 {[%emt 0:01:48]} 9. f3 {[%emt 0:02:50]} Bd7 {[%emt 0:01:38]} 10. Qd2 {[%emt 0:01:48]} Rc8 {[%emt 0:00:23]} 11. Rfd1 {[%emt 0:00:43]} Ne5 {[%emt 0:00:17]} 12. Bf2 {[%emt 0:03:16]} a6 {[%emt 0:00:32]} 13. a4 {[%emt 0:01:29]} Qc7 {[%emt 0:00:29]} 14. Nd5 {[%emt 0:05:36]} Nxd5 {[%emt 0:00:50]} 15. exd5 {[%emt 0:00:07]} Nc4 {[%emt 0:00:15]} 16. Qb4 {[%emt 0:02:46]} Nb6 {[%emt 0:08:58]} 17. c4 {[%emt 0:03:44]} a5 {[%emt 0:10:27]} 18. Qb3 {[%emt 0:06:48]} Qd8 {[%emt 0:17:27]} 19. Ne6 {[%emt 0:08:13]} fxe6 {[%emt 0:00:45]} 20. Bxb6 {[%emt 0:00:18]} Qe8 {[%emt 0:00:05]} 21. dxe6 {[%emt 0:04:30]} Bxe6 {[%emt 0:00:52]} 22. Bxa5 {[%emt 0:03:27]} Qc6 {[%emt 0:00:12]} 23. Qe3 {[%emt 0:05:00]} Bxc4 {[%emt 0:02:31]} 24. Rac1 {[%emt 0:02:04]} d5 {[%emt 0:00:09]} 25. b3 {[%emt 0:04:29]} Qc5 {[%emt 0:00:02]} 26. Qxc5 {[%emt 0:01:15]} Rxc5 {[%emt 0:00:04]} 27. Bb4 {[%emt 0:05:49]} Bxe2 {[%emt 0:00:17]} 28. Bxc5 {[%emt 0:00:19]} Bxd1 29. Rxd1 {[%emt 0:00:06]} Rc8 {[%emt 0:00:18]} 30. Bxe7 {[%emt 0:03:58]} d4 {[%emt 0:00:06]} 31. b4 {[%emt 0:02:18]} Rc3 {[%emt 0:00:27]} 32. Kf2 {[%emt 0:04:19]} d3 {[%emt 0:00:58]} 33. Bc5 {[%emt 0:01:38]} Bh6 {[%emt 0:00:12]} 34. g3 {[%emt 0:03:39]} Rc2+ {[%emt 0:00:12]} 35. Kf1 {[%emt 0:00:33]} Bd2 {[%emt 0:01:27]} 36. a5 {[%emt 0:03:40]} Kf7 {[%emt 0:00:07]} 37. Bb6 {[%emt 0:01:39]} Ra2 {[%emt 0:00:58]} 38. h4 {[%emt 0:01:44]} Ke6 {[%emt 0:00:05]} 39. Bc5 {[%emt 0:02:50]} Kd5 {[%emt 0:00:11]} 40. Bf2 {[%emt 0:01:24]} Kc4 {[%emt 0:00:07]} 41. Be1 {[%emt 0:03:17]} Be3 {[%emt 0:00:19]} 42. g4 {[%emt 0:01:48]} Rh2 {[%emt 0:00:20]} 43. b5 {[%emt 0:00:53]} d2 {[%emt 0:00:37]} 44. Bxd2 {[%emt 0:04:07]} Rxd2 {[%emt 0:02:01]} 45. Rxd2 {[%emt 0:00:08]} Bxd2 {[%emt 0:00:17]} 46. a6 {[%emt 0:00:15]} bxa6 {[%emt 0:00:09]} 47. bxa6 {[%emt 0:00:02]} Be3 {[%emt 0:00:01]} 48. f4 {[%emt 0:00:52]} Kb5 {[%emt 0:01:23]} 49. Ke2 {[%emt 0:00:33]} Bc5 {[%emt 0:00:10]} 50. f5 {[%emt 0:00:29]} Kxa6 {[%emt 0:00:05]} 51. Kf3 {[%emt 0:00:16]} Kb7 {[%emt 0:00:48]} 52. Kf4 {[%emt 0:01:25]} Be7 {[%emt 0:01:28]} 53. g5 {[%emt 0:00:46]} Kc7 {[%emt 0:00:44]} 54. fxg6 {[%emt 0:01:50]} hxg6 {[%emt 0:00:07]} 55. Kg4 {[%emt 0:00:09]} Kd6 {[%emt 0:00:16]} 56. h5 {[%emt 0:00:07]} Ke6 {[%emt 0:00:13]} 57. hxg6 {[%emt 0:00:09]} Bf8 {[%emt 0:00:03]} 58. Kh4 {[%emt 0:00:17]} Kf5 {[%emt 0:00:09]} 59. Kh5 {[%emt 0:00:11]} Bg7 {[%emt 0:00:09]} 60. Kh4 {[%emt 0:00:10]} Kxg6 {[%emt 0:00:00]} 61. Kg4 {[%emt 0:00:06]} Bf6 {[%emt 0:00:03]} 62. gxf6 {[%emt 0:00:09]} Kf7 {[%emt 0:00:21]} 63. Kf5 {[%emt 0:00:03]} Kf8 {[%emt 0:00:08]} 64. Ke5 {[%emt 0:00:11]} Kf7 {[%emt 0:00:08]} 65. Kf4 {[%emt 0:00:13]} Kxf6 {[%emt 0:00:13]} 66. Ke4 {[%emt 0:00:00]} 1/2-1/2

[Event "FIDE World Cup O12-TB 2024"]
[Site "Batumi"]
[Date "2024.07.02"]
[Round "2.19"]
[White "Amreyev, Azat"]
[Black "Mamikonyan, Artem T"]
[Result "0-1"]
[ECO "B15"]
[WhiteElo "1704"]
[BlackElo "1855"]
[Annotator "NA RC"]
[PlyCount "84"]
[EventDate "2024.06.23"]
[EventType "swiss"]
[EventCountry "GEO"]
[SourceTitle "playchess.com"]
[Source "ChessBase"]
[SourceQuality "1"]
[TimeControl "5400+30"]

1. e4 {[%emt 0:00:17]} c6 {[%emt 0:00:04]} 2. d4 {[%emt 0:00:05]} d5 {[%emt 0:00:04]} 3. Nc3 {[%emt 0:00:24]} dxe4 {[%emt 0:00:06]} 4. Nxe4 {[%emt 0:00:13]} Nf6 {[%emt 0:00:05]} 5. Nxf6+ {[%emt 0:00:05]} exf6 {[%emt 0:00:06]} 6. c3 {[%emt 0:00:34]} Bd6 {[%emt 0:00:06]} 7. Bd3 {[%emt 0:00:05]} O-O {[%emt 0:00:05]} 8. Qc2 {[%emt 0:00:10]} Re8+ {[%emt 0:00:06]} 9. Be3 {[%emt 0:00:35]} h5 {[%emt 0:01:16]} 10. Nf3 {[%emt 0:00:19]} Bf4 {[%emt 0:07:04]} 11. O-O {[%emt 0:03:28]} Bxe3 {[%emt 0:10:58]} 12. fxe3 {[%emt 0:00:05]} Rxe3 {[%emt 0:00:07]} 13. Ne5 {[%emt 0:08:07]} fxe5 {[%emt 0:25:48]} 14. Qf2 {[%emt 0:00:48]} Rxd3 {[%emt 0:00:11]} 15. Qxf7+ {[%emt 0:00:04]} Kh7 {[%emt 0:00:45]} 16. Qxh5+ {[%emt 0:00:05]} Kg8 {[%emt 0:00:06]} 17. Qg6 {[%emt 0:00:27]} Qe7 {[%emt 0:14:23]} 18. Qxd3 {[%emt 0:00:20]} e4 {[%emt 0:00:22]} 19. Qg3 {[%emt 0:00:23]} Nd7 {[%emt 0:02:32]} 20. Rae1 {[%emt 0:01:58]} Nf6 {[%emt 0:01:03]} 21. Qe5 {[%emt 0:01:24]} Be6 {[%emt 0:00:59]} 22. b3 {[%emt 0:01:11]} Re8 {[%emt 0:00:22]} 23. Qg5 {[%emt 0:00:41]} Nd5 {[%emt 0:05:37]} 24. Qxe7 {[%emt 0:00:22]} Rxe7 {[%emt 0:00:12]} 25. c4 {[%emt 0:00:28]} Nf6 {[%emt 0:00:05]} 26. h3 {[%emt 0:01:15]} Rd7 {[%emt 0:02:30]} 27. Rd1 {[%emt 0:04:49]} b5 {[%emt 0:00:13]} 28. cxb5 {[%emt 0:00:13]} cxb5 {[%emt 0:00:04]} 29. Rc1 {[%emt 0:01:46]} Rxd4 {[%emt 0:00:33]} 30. Rfd1 {[%emt 0:00:21]} Rxd1+ {[%emt 0:29:38]} 31. Rxd1 {[%emt 0:00:03]} Nd5 {[%emt 0:00:00]} 32. a4 {[%emt 0:01:33]} a6 {[%emt 0:00:00]} 33. Rc1 {[%emt 0:00:37]} Kf7 {[%emt 0:00:00]} 34. Rc6 {[%emt 0:01:17]} e3 {[%emt 0:00:00]} 35. Rxa6 {[%emt 0:00:34]} b4 {[%emt 0:00:00]} 36. Ra7+ {[%emt 0:00:20]} Kf6 {[%emt 0:00:00]} 37. Rb7 {[%emt 0:00:07]} Ke5 {[%emt 0:00:00]} 38. a5 {[%emt 0:00:54]} Kd4 {[%emt 0:00:00]} 39. a6 {[%emt 0:01:00]} e2 {[%emt 0:00:00]} 40. Kf2 {[%emt 0:00:05]} Kd3 {[%emt 0:00:00]} 41. Ke1 {[%emt 0:02:00]} Ne3 {[%emt 0:00:00]} 42. Rc7 {[%emt 0:00:09]} Nxg2+ {[%emt 0:00:00]} 0-1

[Event "FIDE World Cup O12-TB 2024"]
[Site "Batumi"]
[Date "2024.07.02"]
[Round "2.20"]
[White "Yang, Maxwell"]
[Black "Yusupov, Rauf"]
[Result "1-0"]
[ECO "D36"]
[WhiteElo "1979"]
[BlackElo "1800"]
[Annotator "NA RC"]
[PlyCount "63"]
[EventDate "2024.06.23"]
[EventType "swiss"]
[EventCountry "GEO"]
[SourceTitle "playchess.com"]
[Source "ChessBase"]
[SourceQuality "1"]
[TimeControl "5400+30"]

1. d4 {[%emt 0:00:16]} d5 {[%emt 0:00:03]} 2. c4 {[%emt 0:00:06]} e6 {[%emt 0:00:03]} 3. Nc3 {[%emt 0:00:04]} Nf6 {[%emt 1:31:54]} 4. cxd5 {[%emt 0:00:11]} exd5 {[%emt 0:00:00]} 5. Bg5 {[%emt 0:00:08]} Be7 {[%emt 0:00:00]} 6. e3 {[%emt 0:00:27]} c6 {[%emt 0:00:00]} 7. Qc2 {[%emt 0:00:22]} h6 {[%emt 0:00:00]} 8. Bh4 {[%emt 0:00:05]} O-O {[%emt 0:00:00]} 9. Bd3 {[%emt 0:00:26]} Re8 {[%emt 0:00:00]} 10. Nge2 {[%emt 0:00:43]} Nbd7 {[%emt 0:00:00]} 11. O-O {[%emt 0:00:43]} Nf8 {[%emt 0:00:00]} 12. f3 {[%emt 0:00:43]} Qd7 {[%emt 0:00:00]} 13. Bf2 {[%emt 0:01:38]} Bd8 {[%emt 0:00:00]} 14. Ng3 {[%emt 0:01:12]} g6 {[%emt 0:00:00]} 15. Rad1 {[%emt 0:22:02]} Bc7 {[%emt 0:00:00]} 16. e4 {[%emt 0:04:22]} dxe4 {[%emt 0:00:00]} 17. Bxe4 {[%emt 0:03:03]} Nxe4 {[%emt 0:00:00]} 18. Ngxe4 {[%emt 0:01:42]} Nh7 {[%emt 0:00:00]} 19. Nc5 {[%emt 0:12:56]} Qf5 {[%emt 0:00:00]} 20. Qxf5 {[%emt 0:01:19]} Bxf5 {[%emt 0:00:00]} 21. d5 {[%emt 0:00:33]} cxd5 {[%emt 0:00:00]} 22. Nxd5 {[%emt 0:00:38]} Rac8 {[%emt 0:00:00]} 23. Nxb7 {[%emt 0:02:43]} Be5 {[%emt 0:00:00]} 24. f4 {[%emt 0:04:29]} Bb8 {[%emt 0:00:00]} 25. Nc5 {[%emt 0:11:31]} Kg7 {[%emt 0:00:00]} 26. Bd4+ {[%emt 0:04:47]} Kf8 {[%emt 0:00:00]} 27. b4 {[%emt 0:01:37]} Rcd8 {[%emt 0:00:00]} 28. Nc3 {[%emt 0:04:23]} Bg4 {[%emt 0:00:00]} 29. Rd2 {[%emt 0:01:57]} Nf6 {[%emt 0:00:00]} 30. h3 {[%emt 0:04:31]} Be6 {[%emt 0:00:00]} 31. Rfd1 {[%emt 0:02:18]} Bxf4 {[%emt 0:00:00]} 32. Nxe6+ {[%emt 0:00:23]} 1-0

[Event "FIDE World Cup O12-TB 2024"]
[Site "Batumi"]
[Date "2024.07.02"]
[Round "2.22"]
[White "Todua, Andria"]
[Black "Atar, Semih Akif"]
[Result "1/2-1/2"]
[ECO "D00"]
[WhiteElo "1599"]
[BlackElo "1660"]
[Annotator "NA RC"]
[PlyCount "64"]
[EventDate "2024.06.23"]
[EventType "swiss"]
[EventCountry "GEO"]
[SourceTitle "playchess.com"]
[Source "ChessBase"]
[SourceQuality "1"]
[TimeControl "5400+30"]

1. d4 {[%emt 0:00:13]} d5 {[%emt 0:00:09]} 2. Nc3 {[%emt 0:00:05]} Nf6 {[%emt 0:01:07]} 3. Bf4 {[%emt 0:00:08]} a6 {[%emt 0:05:30]} 4. e3 {[%emt 0:00:23]} Bf5 {[%emt 0:04:09]} 5. Nf3 {[%emt 0:01:46]} e6 {[%emt 0:01:30]} 6. Bd3 {[%emt 0:01:21]} Bxd3 {[%emt 0:03:17]} 7. Qxd3 {[%emt 0:01:02]} Nbd7 {[%emt 0:07:14]} 8. O-O {[%emt 0:00:51]} h6 {[%emt 0:00:51]} 9. Rfb1 {[%emt 0:02:58]} Nh5 {[%emt 0:00:58]} 10. Bg3 {[%emt 0:02:07]} Nxg3 {[%emt 0:00:59]} 11. hxg3 {[%emt 1:25:06]} c5 {[%emt 1:10:16]} 12. a3 {[%emt 0:00:00]} Bd6 {[%emt 0:00:00]} 13. b4 {[%emt 0:00:00]} cxd4 {[%emt 0:00:00]} 14. exd4 {[%emt 0:00:00]} Nb6 {[%emt 0:00:00]} 15. Nd2 {[%emt 0:00:00]} Rc8 {[%emt 0:00:00]} 16. a4 {[%emt 0:00:00]} Nc4 {[%emt 0:00:00]} 17. a5 {[%emt 0:00:00]} Qc7 {[%emt 0:00:00]} 18. Rb3 {[%emt 0:00:00]} O-O {[%emt 0:00:00]} 19. b5 {[%emt 0:00:00]} Nxd2 {[%emt 0:00:00]} 20. Qxd2 {[%emt 0:00:00]} Bb4 {[%emt 0:00:00]} 21. Rxb4 {[%emt 0:00:00]} Qxc3 {[%emt 0:00:00]} 22. Qxc3 {[%emt 0:00:00]} Rxc3 {[%emt 0:00:00]} 23. bxa6 {[%emt 0:00:00]} bxa6 {[%emt 0:00:00]} 24. Rb6 {[%emt 0:00:00]} Ra8 {[%emt 0:00:00]} 25. Rab1 {[%emt 0:00:00]} Ra3 {[%emt 0:00:00]} 26. Kf1 {[%emt 0:00:00]} Rxa5 {[%emt 0:00:00]} 27. Ke2 {[%emt 0:00:00]} Ra4 {[%emt 0:00:00]} 28. Kd3 {[%emt 0:00:00]} Rc8 {[%emt 0:00:00]} 29. Rb8 {[%emt 0:00:00]} Rac4 {[%emt 0:00:00]} 30. Rxc8+ {[%emt 0:00:00]} Rxc8 {[%emt 0:00:00]} 31. Ra1 {[%emt 0:00:00]} Ra8 {[%emt 0:00:00]} 32. Ra5 {[%emt 0:00:00]} Kh7 {[%emt 0:00:00]} 1/2-1/2

[Event "FIDE World Cup O12-TB 2024"]
[Site "Batumi"]
[Date "2024.07.02"]
[Round "2.23"]
[White "Khubuluri, Zaal"]
[Black "Lee, Daniel Joshua"]
[Result "1-0"]
[ECO "C54"]
[WhiteElo "1501"]
[BlackElo "1717"]
[Annotator "NA RC"]
[PlyCount "107"]
[EventDate "2024.06.23"]
[EventType "swiss"]
[EventCountry "GEO"]
[SourceTitle "playchess.com"]
[Source "ChessBase"]
[SourceQuality "1"]
[TimeControl "5400+30"]

1. e4 {[%emt 0:00:26]} e5 {[%emt 0:00:00]} 2. Nf3 {[%emt 0:00:16]} Nc6 {[%emt 0:00:00]} 3. d4 {[%emt 0:00:20]} exd4 {[%emt 0:00:00]} 4. Bc4 {[%emt 0:00:18]} Bc5 {[%emt 0:00:00]} 5. c3 {[%emt 0:08:03]} Nf6 {[%emt 0:00:02]} 6. e5 {[%emt 0:00:32]} d5 {[%emt 0:00:06]} 7. Bb5 {[%emt 0:00:19]} Ne4 {[%emt 0:00:10]} 8. cxd4 {[%emt 0:00:32]} Bb4+ {[%emt 0:00:04]} 9. Nbd2 {[%emt 0:00:48]} O-O {[%emt 0:00:40]} 10. O-O {[%emt 0:01:24]} Bg4 {[%emt 0:02:05]} 11. Nb3 {[%emt 0:08:14]} f6 {[%emt 0:04:14]} 12. Be2 {[%emt 0:06:05]} fxe5 {[%emt 0:11:50]} 13. Nxe5 {[%emt 0:01:49]} Bxe2 {[%emt 0:05:37]} 14. Qxe2 {[%emt 0:00:35]} Nxe5 {[%emt 0:03:21]} 15. dxe5 {[%emt 0:01:11]} Qe7 {[%emt 0:02:42]} 16. f3 {[%emt 0:08:13]} Nc5 {[%emt 0:03:35]} 17. Nd4 {[%emt 0:01:56]} Nd7 {[%emt 0:02:53]} 18. f4 {[%emt 0:02:55]} Bc5 {[%emt 0:01:27]} 19. Be3 {[%emt 0:56:04]} Bxd4 {[%emt 0:08:13]} 20. Bxd4 {[%emt 0:00:00]} c5 {[%emt 0:00:40]} 21. Bc3 {[%emt 0:00:00]} d4 {[%emt 0:00:32]} 22. Bd2 {[%emt 0:00:00]} Nb6 {[%emt 0:03:26]} 23. f5 {[%emt 0:00:00]} Rae8 {[%emt 0:01:57]} 24. Rae1 {[%emt 0:00:00]} Qd7 {[%emt 0:03:41]} 25. e6 {[%emt 0:00:00]} Qd5 {[%emt 0:02:57]} 26. Qg4 {[%emt 0:00:00]} Kh8 {[%emt 0:01:29]} 27. Bg5 {[%emt 0:00:00]} d3 {[%emt 0:05:00]} 28. f6 {[%emt 0:00:00]} gxf6 {[%emt 0:00:44]} 29. Bxf6+ {[%emt 0:00:00]} Rxf6 {[%emt 0:00:07]} 30. Rxf6 {[%emt 0:00:00]} d2 {[%emt 0:04:37]} 31. Ref1 {[%emt 0:00:00]} Qd4+ {[%emt 0:01:01]} 32. Qxd4 {[%emt 0:00:00]} cxd4 {[%emt 0:00:04]} 33. Rf8+ {[%emt 0:00:00]} Rxf8 {[%emt 0:00:07]} 34. Rxf8+ {[%emt 0:00:00]} Kg7 {[%emt 0:00:04]} 35. Rf1 {[%emt 0:00:00]} Nd5 {[%emt 0:04:49]} 36. Rd1 {[%emt 0:00:00]} Kf6 {[%emt 0:00:14]} 37. Rxd2 {[%emt 0:00:00]} Kxe6 {[%emt 0:00:04]} 38. Rxd4 {[%emt 0:00:00]} Ke5 {[%emt 0:00:24]} 39. Rh4 {[%emt 0:00:00]} Nf6 {[%emt 0:00:07]} 40. Kf2 {[%emt 0:00:00]} h5 {[%emt 0:00:09]} 41. Kf3 {[%emt 0:00:00]} a5 {[%emt 0:00:50]} 42. b4 {[%emt 0:00:00]} axb4 {[%emt 0:00:23]} 43. Rxb4 {[%emt 0:00:00]} Nd5 {[%emt 0:00:39]} 44. Rxb7 {[%emt 0:00:00]} Nc3 {[%emt 0:00:13]} 45. a3 {[%emt 0:00:00]} Kd4 {[%emt 0:00:23]} 46. a4 {[%emt 0:00:00]} Kd5 {[%emt 0:00:18]} 47. Rb5+ {[%emt 0:00:00]} Nxb5 {[%emt 0:00:06]} 48. axb5 {[%emt 0:00:00]} Kc5 {[%emt 0:00:05]} 49. Kf4 {[%emt 0:00:00]} Kxb5 {[%emt 0:00:04]} 50. Kg5 {[%emt 0:00:00]} Kc5 {[%emt 0:00:04]} 51. Kxh5 {[%emt 0:00:00]} Kd5 {[%emt 0:00:06]} 52. Kg6 {[%emt 0:00:00]} Ke6 {[%emt 0:00:25]} 53. h4 {[%emt 0:00:00]} Ke7 {[%emt 0:00:03]} 54. Kg7 {[%emt 0:00:00]} 1-0

[Event "FIDE World Cup O12-TB 2024"]
[Site "Batumi"]
[Date "2024.07.02"]
[Round "2.24"]
[White "Tavberidze, Alexandre"]
[Black "Cronje, Johannes Christiaan"]
[Result "1-0"]
[ECO "B13"]
[WhiteElo "1529"]
[BlackElo "1504"]
[Annotator "NA RC"]
[PlyCount "115"]
[EventDate "2024.06.23"]
[EventType "swiss"]
[EventCountry "GEO"]
[SourceTitle "playchess.com"]
[Source "ChessBase"]
[SourceQuality "1"]
[TimeControl "5400+30"]

1. e4 {[%emt 0:00:03]} c6 {[%emt 0:00:07]} 2. d4 {[%emt 0:00:08]} d5 {[%emt 0:00:08]} 3. exd5 {[%emt 0:00:04]} cxd5 {[%emt 0:00:14]} 4. c4 {[%emt 0:00:04]} Nf6 {[%emt 0:00:19]} 5. Nc3 {[%emt 0:00:19]} Bf5 {[%emt 0:00:59]} 6. Nf3 {[%emt 0:00:56]} e6 {[%emt 0:00:31]} 7. Bg5 {[%emt 0:01:06]} Be7 {[%emt 0:00:14]} 8. Be2 {[%emt 0:03:31]} dxc4 {[%emt 0:00:30]} 9. Bxc4 {[%emt 0:00:27]} O-O {[%emt 0:00:16]} 10. O-O {[%emt 0:00:15]} Na6 {[%emt 0:02:53]} 11. a3 {[%emt 0:02:08]} Nc7 {[%emt 0:01:12]} 12. Ne5 {[%emt 0:01:49]} h6 {[%emt 0:03:28]} 13. Bh4 {[%emt 0:00:14]} Rc8 {[%emt 0:01:55]} 14. Be2 {[%emt 0:02:47]} Nfd5 {[%emt 0:01:59]} 15. Bxe7 {[%emt 0:01:28]} Qxe7 {[%emt 0:00:46]} 16. Nxd5 {[%emt 0:00:34]} Nxd5 {[%emt 0:00:15]} 17. Bd3 {[%emt 0:02:40]} Qg5 {[%emt 0:02:43]} 18. Bxf5 {[%emt 0:02:10]} Qxf5 {[%emt 0:00:51]} 19. Rc1 {[%emt 0:05:08]} Qg5 {[%emt 0:02:50]} 20. Nf3 {[%emt 0:06:48]} Qg6 {[%emt 0:01:28]} 21. Qd2 {[%emt 0:03:09]} Rfd8 {[%emt 0:01:07]} 22. Rxc8 {[%emt 0:01:58]} Rxc8 {[%emt 0:00:10]} 23. Rc1 {[%emt 0:00:07]} Rxc1+ {[%emt 0:00:44]} 24. Qxc1 {[%emt 0:00:27]} Nf4 {[%emt 0:03:26]} 25. Qf1 {[%emt 0:01:16]} f6 {[%emt 0:02:51]} 26. g3 {[%emt 0:03:18]} Qg4 {[%emt 0:02:57]} 27. Nd2 {[%emt 0:06:52]} Ne2+ {[%emt 0:01:35]} 28. Kg2 {[%emt 0:02:59]} Nxd4 {[%emt 1:08:02]} 29. Qc4 {[%emt 0:03:12]} f5 {[%emt 0:00:00]} 30. h3 {[%emt 0:01:47]} Qg5 {[%emt 0:00:00]} 31. Qxd4 {[%emt 0:00:08]} e5 {[%emt 0:00:00]} 32. Qd5+ {[%emt 0:00:30]} Kh7 {[%emt 0:00:00]} 33. Nf3 {[%emt 0:00:20]} Qe7 {[%emt 0:02:30]} 34. Qxe5 {[%emt 0:00:57]} Qd7 {[%emt 0:00:00]} 35. Nd4 {[%emt 0:00:31]} g6 {[%emt 0:00:00]} 36. Ne6 {[%emt 0:00:23]} Qe7 {[%emt 0:00:00]} 37. Qc7 {[%emt 0:00:36]} Qxc7 {[%emt 0:00:00]} 38. Nxc7 {[%emt 0:00:04]} a6 {[%emt 0:00:00]} 39. Ne6 {[%emt 0:00:13]} b5 {[%emt 0:00:00]} 40. Nc7 {[%emt 0:00:03]} a5 {[%emt 0:00:00]} 41. Nxb5 {[%emt 0:00:04]} Kg7 {[%emt 0:00:00]} 42. b4 {[%emt 0:00:08]} axb4 {[%emt 0:00:00]} 43. axb4 {[%emt 0:00:02]} Kf7 {[%emt 0:00:00]} 44. f4 {[%emt 0:00:09]} Ke7 {[%emt 0:00:00]} 45. Nd4 {[%emt 0:00:13]} Kd8 {[%emt 0:00:00]} 46. g4 {[%emt 0:00:07]} fxg4 {[%emt 0:00:00]} 47. hxg4 {[%emt 0:00:03]} Kc7 {[%emt 0:00:00]} 48. f5 {[%emt 0:00:08]} gxf5 {[%emt 0:00:00]} 49. gxf5 {[%emt 0:00:04]} Kb6 {[%emt 0:00:00]} 50. f6 {[%emt 0:00:04]} Kc7 {[%emt 0:00:00]} 51. f7 {[%emt 0:00:04]} Kd6 {[%emt 0:00:00]} 52. f8=Q+ {[%emt 0:00:04]} Kc7 {[%emt 0:00:00]} 53. Qe7+ {[%emt 0:00:14]} Kb6 {[%emt 0:00:00]} 54. Qd6+ {[%emt 0:00:05]} Kb7 {[%emt 0:00:00]} 55. Qc6+ {[%emt 0:55:02]} Ka7 {[%emt 0:00:00]} 56. Nb5+ {[%emt 0:00:00]} Kb8 {[%emt 0:00:00]} 57. Qc7+ {[%emt 0:00:00]} Ka8 {[%emt 0:00:00]} 58. Qa7# {[%emt 0:00:00]} 1-0